[Event "Early-Titled-Tuesday-Blitz-May-14-2024"]
[Site "Chess.com"]
[Date "2024.05.14"]
[Round "2"]
[White "Herzog2012"]
[Black "Malikova777"]
[Result "1-0"]
[WhiteElo "2543"]
[BlackElo "2313"]
[TimeControl "180+1"]
[EndTime "8:17:08 PDT"]
[Termination "Herzog2012 won by resignation"]

1. e4 {[%clk 0:02:55.2]} 1... e6 {[%clk 0:02:59.2]} 2. d4 {[%clk 0:02:53.4]}
2... d5 {[%clk 0:02:56.3]} 3. Nd2 {[%clk 0:02:53.8]} 3... c5 {[%clk 0:02:56.1]}
4. exd5 {[%clk 0:02:53.9]} 4... Qxd5 {[%clk 0:02:57]} 5. Ngf3 {[%clk 0:02:53.9]}
5... cxd4 {[%clk 0:02:57.3]} 6. Bc4 {[%clk 0:02:54.6]} 6... Qd6 {[%clk
0:02:57.3]} 7. O-O {[%clk 0:02:54.6]} 7... Nf6 {[%clk 0:02:57.3]} 8. Nb3 {[%clk
0:02:54.8]} 8... Nc6 {[%clk 0:02:57.8]} 9. Nbxd4 {[%clk 0:02:55.3]} 9... Nxd4
{[%clk 0:02:58.1]} 10. Nxd4 {[%clk 0:02:56.2]} 10... a6 {[%clk 0:02:58.7]} 11.
Bb3 {[%clk 0:02:54.7]} 11... Qc7 {[%clk 0:02:57.1]} 12. Qf3 {[%clk 0:02:37.1]}
12... Bd6 {[%clk 0:02:51.3]} 13. h3 {[%clk 0:02:36.5]} 13... O-O {[%clk
0:02:47.1]} 14. Bg5 {[%clk 0:02:31.4]} 14... Bh2+ {[%clk 0:02:38.4]} 15. Kh1
{[%clk 0:02:30.6]} 15... Be5 {[%clk 0:02:39.3]} 16. c3 {[%clk 0:02:24.8]} 16...
h6 {[%clk 0:02:20]} 17. Bh4 {[%clk 0:02:22.9]} 17... Nd7 {[%clk 0:02:12.8]} 18.
Be7 {[%clk 0:01:50.6]} 18... Re8 {[%clk 0:01:46]} 19. Nxe6 {[%clk 0:01:48.8]}
19... Qc6 {[%clk 0:01:28.8]} 20. Bd5 {[%clk 0:01:27.5]} 20... Qb6 {[%clk
0:01:22.6]} 21. Nxg7 {[%clk 0:00:33.1]} 21... Rxe7 {[%clk 0:01:16]} 22. Nf5
{[%clk 0:00:32.4]} 22... Re6 {[%clk 0:01:04.9]} 23. Bxe6 {[%clk 0:00:22.6]}
23... Qxe6 {[%clk 0:01:05.8]} 24. Rfe1 {[%clk 0:00:17.2]} 24... Qf6 {[%clk
0:00:54.7]} 25. Qg4+ {[%clk 0:00:16.5]} 25... Qg5 {[%clk 0:00:52]} 26. Nxh6+
{[%clk 0:00:14.6]} 26... Kh7 {[%clk 0:00:44.4]} 27. Qxg5 {[%clk 0:00:15.5]} 1-0

[Event "Early-Titled-Tuesday-Blitz-May-14-2024"]
[Site "Chess.com"]
[Date "2024.05.14"]
[Round "2"]
[White "youngdinousaur"]
[Black "Aemulus20"]
[Result "0-1"]
[WhiteElo "2375"]
[BlackElo "2630"]
[TimeControl "180+1"]
[EndTime "8:17:12 PDT"]
[Termination "Aemulus20 won by resignation"]

1. d4 {[%clk 0:03:00.9]} 1... Nf6 {[%clk 0:02:59.4]} 2. Nf3 {[%clk 0:03:00]}
2... g6 {[%clk 0:02:58.8]} 3. Nc3 {[%clk 0:03:00]} 3... d5 {[%clk 0:02:58]} 4.
Bf4 {[%clk 0:03:00.1]} 4... Bg7 {[%clk 0:02:56.9]} 5. e3 {[%clk 0:02:59.8]} 5...
O-O {[%clk 0:02:56.3]} 6. Be2 {[%clk 0:02:58.9]} 6... Bg4 {[%clk 0:02:46.1]} 7.
Ne5 {[%clk 0:02:58.5]} 7... Bxe2 {[%clk 0:02:46]} 8. Qxe2 {[%clk 0:02:59.4]}
8... Nbd7 {[%clk 0:02:45]} 9. h4 {[%clk 0:02:56.4]} 9... c5 {[%clk 0:02:37.3]}
10. O-O-O {[%clk 0:02:48.6]} 10... cxd4 {[%clk 0:02:36.1]} 11. exd4 {[%clk
0:02:49.5]} 11... Rc8 {[%clk 0:02:35.7]} 12. g4 {[%clk 0:02:45.9]} 12... Rxc3
{[%clk 0:02:33.8]} 13. bxc3 {[%clk 0:02:45.1]} 13... Ne4 {[%clk 0:02:32]} 14.
Qe3 {[%clk 0:02:34.5]} 14... Nxe5 {[%clk 0:02:25.9]} 15. Bxe5 {[%clk 0:02:34.1]}
15... Qa5 {[%clk 0:02:16.7]} 16. Kb2 {[%clk 0:01:58.6]} 16... Rc8 {[%clk
0:01:47.3]} 17. Rd3 {[%clk 0:01:56.5]} 17... Rc6 {[%clk 0:00:55.1]} 18. Kc1
{[%clk 0:01:35.4]} 18... Qxa2 {[%clk 0:00:44.2]} 19. Kd1 {[%clk 0:01:22.2]}
19... Qb1+ {[%clk 0:00:40.9]} 20. Qc1 {[%clk 0:01:14.3]} 20... Nxf2+ {[%clk
0:00:37]} 21. Ke2 {[%clk 0:01:07.3]} 21... Qxc1 {[%clk 0:00:28.4]} 22. Rxc1
{[%clk 0:01:08.2]} 22... Nxd3 {[%clk 0:00:28]} 23. cxd3 {[%clk 0:01:08.9]} 23...
Bxe5 {[%clk 0:00:22.7]} 24. dxe5 {[%clk 0:01:09.8]} 24... d4 {[%clk 0:00:16.3]}
25. c4 {[%clk 0:00:54.6]} 25... Re6 {[%clk 0:00:16.4]} 26. Kf3 {[%clk 0:00:53]}
26... Rxe5 {[%clk 0:00:16.4]} 27. Kf4 {[%clk 0:00:52.9]} 27... Re3 {[%clk
0:00:16.1]} 28. Rb1 {[%clk 0:00:47.7]} 28... Kg7 {[%clk 0:00:14.3]} 29. Rxb7
{[%clk 0:00:46.9]} 29... e5+ {[%clk 0:00:14.5]} 0-1

[Event "Early-Titled-Tuesday-Blitz-May-14-2024"]
[Site "Chess.com"]
[Date "2024.05.14"]
[Round "2"]
[White "Kunalm64"]
[Black "MdChess1734"]
[Result "1-0"]
[WhiteElo "2607"]
[BlackElo "2366"]
[TimeControl "180+1"]
[EndTime "8:17:12 PDT"]
[Termination "Kunalm64 won on time"]

1. d4 {[%clk 0:02:59.4]} 1... Nf6 {[%clk 0:02:57.5]} 2. c4 {[%clk 0:02:59.9]}
2... e6 {[%clk 0:02:51]} 3. Nc3 {[%clk 0:02:59.7]} 3... Bb4 {[%clk 0:02:49]} 4.
e3 {[%clk 0:02:59.8]} 4... b6 {[%clk 0:02:38.4]} 5. Bd3 {[%clk 0:02:53.3]} 5...
Bb7 {[%clk 0:02:37.8]} 6. Ne2 {[%clk 0:02:53.3]} 6... Bxg2 {[%clk 0:02:26.5]} 7.
Rg1 {[%clk 0:02:52.8]} 7... Bf3 {[%clk 0:02:25.9]} 8. Rg3 {[%clk 0:02:49.8]}
8... Bh5 {[%clk 0:02:23.3]} 9. e4 {[%clk 0:02:40.8]} 9... Bg6 {[%clk 0:02:21.2]}
10. e5 {[%clk 0:02:36.7]} 10... Nh5 {[%clk 0:02:18.2]} 11. Rg5 {[%clk
0:02:29.9]} 11... Qe7 {[%clk 0:01:43.9]} 12. a3 {[%clk 0:02:27.3]} 12... Bxc3+
{[%clk 0:01:41.3]} 13. Nxc3 {[%clk 0:02:27.3]} 13... Nc6 {[%clk 0:01:41.3]} 14.
Rxh5 {[%clk 0:02:20.8]} 14... Bxh5 {[%clk 0:01:38.8]} 15. Qxh5 {[%clk
0:02:21.4]} 15... Nxd4 {[%clk 0:01:38.1]} 16. Bg5 {[%clk 0:01:56.7]} 16... Qc5
{[%clk 0:01:04.7]} 17. Be3 {[%clk 0:01:56.4]} 17... d6 {[%clk 0:01:03.9]} 18.
Nb5 {[%clk 0:01:19.7]} 18... dxe5 {[%clk 0:00:34.9]} 19. Bxd4 {[%clk 0:01:14]}
19... exd4 {[%clk 0:00:21.5]} 20. Qxc5 {[%clk 0:01:14.5]} 20... bxc5 {[%clk
0:00:22.3]} 21. Nxc7+ {[%clk 0:01:15.2]} 21... Kd7 {[%clk 0:00:20.7]} 22. Nxa8
{[%clk 0:01:15.4]} 22... Rxa8 {[%clk 0:00:21.6]} 23. b4 {[%clk 0:01:15.6]} 23...
Rb8 {[%clk 0:00:16]} 24. Rb1 {[%clk 0:01:14.8]} 24... f5 {[%clk 0:00:11.3]} 25.
f4 {[%clk 0:01:13.9]} 25... h6 {[%clk 0:00:07]} 26. h4 {[%clk 0:01:13.1]} 26...
g6 {[%clk 0:00:02.6]} 27. Kd2 {[%clk 0:01:12.7]} 1-0

[Event "Early-Titled-Tuesday-Blitz-May-14-2024"]
[Site "Chess.com"]
[Date "2024.05.14"]
[Round "2"]
[White "chessfatbear"]
[Black "SargissyanSargis"]
[Result "1-0"]
[WhiteElo "2889"]
[BlackElo "2429"]
[TimeControl "180+1"]
[EndTime "8:17:13 PDT"]
[Termination "chessfatbear won on time"]

1. Nf3 {[%clk 0:02:59.6]} 1... Nf6 {[%clk 0:02:59.5]} 2. g3 {[%clk 0:03:00.5]}
2... g6 {[%clk 0:03:00.1]} 3. Bg2 {[%clk 0:03:01.4]} 3... Bg7 {[%clk 0:03:00]}
4. O-O {[%clk 0:03:02.3]} 4... O-O {[%clk 0:03:00.5]} 5. b3 {[%clk 0:03:03.1]}
5... d5 {[%clk 0:02:51.3]} 6. Bb2 {[%clk 0:03:03.2]} 6... c5 {[%clk 0:02:49.4]}
7. d4 {[%clk 0:03:00.3]} 7... Nbd7 {[%clk 0:02:27]} 8. e3 {[%clk 0:02:39.4]}
8... b6 {[%clk 0:02:17.4]} 9. Nbd2 {[%clk 0:02:34.6]} 9... Bb7 {[%clk
0:02:15.8]} 10. a4 {[%clk 0:02:32.4]} 10... cxd4 {[%clk 0:02:02.1]} 11. exd4
{[%clk 0:02:33.3]} 11... Ne4 {[%clk 0:01:46.6]} 12. Re1 {[%clk 0:02:10.5]} 12...
Ndf6 {[%clk 0:01:39.9]} 13. Ne5 {[%clk 0:02:03.4]} 13... Nxd2 {[%clk 0:01:35.4]}
14. Qxd2 {[%clk 0:02:03.6]} 14... Ne4 {[%clk 0:01:36.1]} 15. Qe3 {[%clk
0:01:57.1]} 15... Rc8 {[%clk 0:01:34.3]} 16. c4 {[%clk 0:01:57.5]} 16... e6
{[%clk 0:01:23.1]} 17. Rad1 {[%clk 0:01:46]} 17... Nd6 {[%clk 0:01:19.3]} 18.
Ba3 {[%clk 0:01:34.8]} 18... Re8 {[%clk 0:01:18.1]} 19. Qf4 {[%clk 0:01:34]}
19... Rc7 {[%clk 0:00:50.2]} 20. Nxg6 {[%clk 0:01:29.1]} 20... hxg6 {[%clk
0:00:46.8]} 21. Bxd6 {[%clk 0:01:27.9]} 21... Rd7 {[%clk 0:00:43]} 22. c5 {[%clk
0:01:28.4]} 22... bxc5 {[%clk 0:00:38.2]} 23. dxc5 {[%clk 0:01:27.2]} 23... Bc6
{[%clk 0:00:29.5]} 24. h4 {[%clk 0:01:22.6]} 24... Qf6 {[%clk 0:00:25.4]} 25.
Qe3 {[%clk 0:01:19.1]} 25... Bf8 {[%clk 0:00:23.2]} 26. Be5 {[%clk 0:01:14.6]}
26... Qe7 {[%clk 0:00:21.4]} 27. h5 {[%clk 0:01:14.7]} 27... Qxc5 {[%clk
0:00:20.1]} 28. Bd4 {[%clk 0:01:14.8]} 28... Qd6 {[%clk 0:00:16.3]} 29. hxg6
{[%clk 0:01:15.2]} 29... fxg6 {[%clk 0:00:16.3]} 30. Bh3 {[%clk 0:01:14.8]}
30... Rde7 {[%clk 0:00:03.3]} 31. Rc1 {[%clk 0:01:12]} 31... e5 {[%clk
0:00:00.9]} 32. Bc5 {[%clk 0:01:10.3]} 1-0

[Event "Early-Titled-Tuesday-Blitz-May-14-2024"]
[Site "Chess.com"]
[Date "2024.05.14"]
[Round "2"]
[White "Sofia_Blokhin"]
[Black "whitemirrorninja"]
[Result "1-0"]
[WhiteElo "2268"]
[BlackElo "2498"]
[TimeControl "180+1"]
[EndTime "8:17:15 PDT"]
[Termination "Sofia_Blokhin won by resignation"]

1. d4 {[%clk 0:03:00.9]} 1... Nf6 {[%clk 0:02:59.3]} 2. c4 {[%clk 0:02:59.8]}
2... e6 {[%clk 0:02:58.7]} 3. Nc3 {[%clk 0:02:58.8]} 3... c5 {[%clk 0:02:56.4]}
4. d5 {[%clk 0:02:58]} 4... exd5 {[%clk 0:02:57.3]} 5. cxd5 {[%clk 0:02:58.4]}
5... Be7 {[%clk 0:02:57.3]} 6. e4 {[%clk 0:02:57.6]} 6... d6 {[%clk 0:02:57.4]}
7. Bf4 {[%clk 0:02:53.7]} 7... O-O {[%clk 0:02:57.8]} 8. h3 {[%clk 0:02:52.6]}
8... Re8 {[%clk 0:02:57.7]} 9. Nf3 {[%clk 0:02:50.7]} 9... a6 {[%clk 0:02:49]}
10. a4 {[%clk 0:02:49.6]} 10... Qa5 {[%clk 0:02:49.3]} 11. Nd2 {[%clk
0:02:47.4]} 11... Qb4 {[%clk 0:02:45.9]} 12. Qc2 {[%clk 0:02:30.2]} 12... Bf8
{[%clk 0:02:38.2]} 13. Be2 {[%clk 0:02:27.3]} 13... Bf5 {[%clk 0:02:25.1]} 14.
f3 {[%clk 0:02:21.7]} 14... a5 {[%clk 0:02:03.2]} 15. O-O {[%clk 0:02:07.8]}
15... Nbd7 {[%clk 0:01:54.6]} 16. Nc4 {[%clk 0:01:52.3]} 16... Bg6 {[%clk
0:01:42.4]} 17. Na2 {[%clk 0:01:45.4]} 17... Nxe4 {[%clk 0:01:22.3]} 18. fxe4
{[%clk 0:01:21.8]} 18... Bxe4 {[%clk 0:01:20]} 19. Qd1 {[%clk 0:01:04.1]} 19...
Nf6 {[%clk 0:00:59.5]} 20. Nxb4 {[%clk 0:01:03.1]} 20... axb4 {[%clk 0:00:59.5]}
21. Bxd6 {[%clk 0:00:55.7]} 21... Nxd5 {[%clk 0:00:55.2]} 22. Bxf8 {[%clk
0:00:38.7]} 22... Rxf8 {[%clk 0:00:56.1]} 23. Nd6 {[%clk 0:00:37.3]} 23... Ne3
{[%clk 0:00:56]} 24. Qd2 {[%clk 0:00:33.3]} 24... Nxf1 {[%clk 0:00:56.2]} 25.
Rxf1 {[%clk 0:00:33.4]} 25... Bc6 {[%clk 0:00:56.9]} 26. Qf4 {[%clk 0:00:32.9]}
26... Rad8 {[%clk 0:00:55.2]} 27. Bc4 {[%clk 0:00:32.8]} 27... Rd7 {[%clk
0:00:53.4]} 28. Nxf7 {[%clk 0:00:30.7]} 28... Rdxf7 {[%clk 0:00:29.6]} 29. Bxf7+
{[%clk 0:00:29.5]} 29... Kh8 {[%clk 0:00:30.1]} 30. Qd6 {[%clk 0:00:27.9]} 1-0

[Event "Early-Titled-Tuesday-Blitz-May-14-2024"]
[Site "Chess.com"]
[Date "2024.05.14"]
[Round "2"]
[White "MatyChess1"]
[Black "yonaltimur"]
[Result "1-0"]
[WhiteElo "2662"]
[BlackElo "2377"]
[TimeControl "180+1"]
[EndTime "8:17:16 PDT"]
[Termination "MatyChess1 won by checkmate"]

1. e4 {[%clk 0:03:00.9]} 1... c5 {[%clk 0:02:36.3]} 2. Nf3 {[%clk 0:03:00.5]}
2... d6 {[%clk 0:02:22.7]} 3. c3 {[%clk 0:02:55.3]} 3... Nf6 {[%clk 0:02:21.1]}
4. h3 {[%clk 0:02:53.8]} 4... Nc6 {[%clk 0:02:14.3]} 5. Bd3 {[%clk 0:02:51.7]}
5... e6 {[%clk 0:02:11.1]} 6. O-O {[%clk 0:02:50.7]} 6... Be7 {[%clk 0:02:11.4]}
7. Bc2 {[%clk 0:02:50.5]} 7... O-O {[%clk 0:02:11.3]} 8. d4 {[%clk 0:02:51.1]}
8... cxd4 {[%clk 0:02:11.2]} 9. cxd4 {[%clk 0:02:52]} 9... d5 {[%clk 0:02:11.3]}
10. e5 {[%clk 0:02:52.3]} 10... Ne4 {[%clk 0:02:11.7]} 11. Nc3 {[%clk
0:02:48.1]} 11... Nxc3 {[%clk 0:02:10.3]} 12. bxc3 {[%clk 0:02:49]} 12... b6
{[%clk 0:02:06.4]} 13. Qd3 {[%clk 0:02:49.4]} 13... g6 {[%clk 0:02:02.6]} 14.
Bh6 {[%clk 0:02:49.5]} 14... Re8 {[%clk 0:02:02.6]} 15. Rfe1 {[%clk 0:02:42.6]}
15... a5 {[%clk 0:02:02.3]} 16. Qe3 {[%clk 0:02:40.8]} 16... Ba6 {[%clk
0:01:53.6]} 17. Qf4 {[%clk 0:02:40.4]} 17... Qd7 {[%clk 0:01:35.4]} 18. h4
{[%clk 0:02:31]} 18... Rac8 {[%clk 0:01:22.2]} 19. Re3 {[%clk 0:02:23.2]} 19...
Nb4 {[%clk 0:01:21.2]} 20. Bb1 {[%clk 0:02:15.7]} 20... Nc6 {[%clk 0:01:11.6]}
21. a4 {[%clk 0:01:54.3]} 21... b5 {[%clk 0:01:08.8]} 22. axb5 {[%clk
0:01:52.5]} 22... Bxb5 {[%clk 0:01:09.7]} 23. h5 {[%clk 0:01:50]} 23... a4
{[%clk 0:01:07.5]} 24. Ng5 {[%clk 0:01:42.5]} 24... Nd8 {[%clk 0:01:01.6]} 25.
Rh3 {[%clk 0:01:30.5]} 25... f5 {[%clk 0:00:15.1]} 26. exf6 {[%clk 0:01:25.4]}
26... Bd6 {[%clk 0:00:15.2]} 27. Qh4 {[%clk 0:01:10.9]} 27... e5 {[%clk
0:00:09.8]} 28. hxg6 {[%clk 0:01:08.4]} 28... exd4 {[%clk 0:00:05.6]} 29. gxh7+
{[%clk 0:00:59.4]} 29... Kh8 {[%clk 0:00:04.8]} 30. Bg7+ {[%clk 0:00:57.7]}
30... Qxg7 {[%clk 0:00:04.8]} 31. fxg7+ {[%clk 0:00:58.6]} 31... Kxg7 {[%clk
0:00:05.7]} 32. h8=Q+ {[%clk 0:00:58.6]} 32... Rxh8 {[%clk 0:00:02.5]} 33. Qxh8#
{[%clk 0:00:59.5]} 1-0

[Event "Early-Titled-Tuesday-Blitz-May-14-2024"]
[Site "Chess.com"]
[Date "2024.05.14"]
[Round "2"]
[White "Makswolf200817"]
[Black "Kimkibo"]
[Result "1-0"]
[WhiteElo "2771"]
[BlackElo "2408"]
[TimeControl "180+1"]
[EndTime "8:17:19 PDT"]
[Termination "Makswolf200817 won by checkmate"]

1. e4 {[%clk 0:03:00.9]} 1... e6 {[%clk 0:02:57.9]} 2. d4 {[%clk 0:03:00.2]}
2... d5 {[%clk 0:02:58.1]} 3. Nc3 {[%clk 0:03:00.6]} 3... Nf6 {[%clk 0:02:56.7]}
4. e5 {[%clk 0:02:57.5]} 4... Nfd7 {[%clk 0:02:55]} 5. f4 {[%clk 0:02:57.8]}
5... c5 {[%clk 0:02:55]} 6. Nf3 {[%clk 0:02:58.5]} 6... Nc6 {[%clk 0:02:55]} 7.
Be3 {[%clk 0:02:59.2]} 7... Qb6 {[%clk 0:02:53.4]} 8. a3 {[%clk 0:02:25.8]} 8...
cxd4 {[%clk 0:02:06.3]} 9. Nxd4 {[%clk 0:02:25]} 9... Bc5 {[%clk 0:02:03.9]} 10.
Ncb5 {[%clk 0:01:55.7]} 10... a6 {[%clk 0:01:55]} 11. b4 {[%clk 0:01:40.8]}
11... axb5 {[%clk 0:01:43.1]} 12. bxc5 {[%clk 0:01:40.1]} 12... Qa5+ {[%clk
0:01:41.7]} 13. Bd2 {[%clk 0:01:37.6]} 13... b4 {[%clk 0:01:38.3]} 14. Nb3
{[%clk 0:01:30.1]} 14... Qc7 {[%clk 0:01:33]} 15. axb4 {[%clk 0:01:29.4]} 15...
Rxa1 {[%clk 0:01:33]} 16. Qxa1 {[%clk 0:01:30.3]} 16... O-O {[%clk 0:01:33.6]}
17. Bd3 {[%clk 0:01:25.9]} 17... b6 {[%clk 0:01:27.6]} 18. b5 {[%clk 0:01:25.3]}
18... Ne7 {[%clk 0:01:20.3]} 19. c6 {[%clk 0:01:25.1]} 19... Nc5 {[%clk
0:01:20.3]} 20. Nxc5 {[%clk 0:01:25.5]} 20... bxc5 {[%clk 0:01:21.2]} 21. Qa5
{[%clk 0:01:17.2]} 21... Qb8 {[%clk 0:01:13.4]} 22. c4 {[%clk 0:01:17.2]} 22...
f6 {[%clk 0:00:58.9]} 23. exf6 {[%clk 0:01:15.6]} 23... gxf6 {[%clk 0:00:56.2]}
24. O-O {[%clk 0:01:15.6]} 24... e5 {[%clk 0:00:56.8]} 25. cxd5 {[%clk
0:01:14.2]} 25... Nxd5 {[%clk 0:00:55.9]} 26. f5 {[%clk 0:00:49.3]} 26... Kh8
{[%clk 0:00:51.2]} 27. Qa3 {[%clk 0:00:42.7]} 27... Qb6 {[%clk 0:00:47.5]} 28.
Bc4 {[%clk 0:00:43.1]} 28... Nc7 {[%clk 0:00:41.9]} 29. Ba5 {[%clk 0:00:42.2]}
29... Nxb5 {[%clk 0:00:37.3]} 30. Qa4 {[%clk 0:00:42.2]} 30... Qxc6 {[%clk
0:00:32.3]} 31. Qxb5 {[%clk 0:00:41.6]} 31... Qe4 {[%clk 0:00:30.2]} 32. Qxc5
{[%clk 0:00:40.4]} 32... Bxf5 {[%clk 0:00:27.9]} 33. Qxf8# {[%clk 0:00:40.2]}
1-0

[Event "Early-Titled-Tuesday-Blitz-May-14-2024"]
[Site "Chess.com"]
[Date "2024.05.14"]
[Round "2"]
[White "lagunanivaria"]
[Black "kyawmyataung2005"]
[Result "1-0"]
[WhiteElo "2517"]
[BlackElo "2261"]
[TimeControl "180+1"]
[EndTime "8:17:20 PDT"]
[Termination "lagunanivaria won by resignation"]

1. e3 {[%clk 0:03:00.9]} 1... d5 {[%clk 0:02:58.2]} 2. d4 {[%clk 0:02:58.9]}
2... Nf6 {[%clk 0:02:57.8]} 3. c4 {[%clk 0:02:58.5]} 3... c6 {[%clk 0:02:57.2]}
4. Nc3 {[%clk 0:02:58.9]} 4... Nbd7 {[%clk 0:02:50.9]} 5. Bd3 {[%clk 0:02:54.3]}
5... e6 {[%clk 0:02:49.9]} 6. Nf3 {[%clk 0:02:50.9]} 6... Be7 {[%clk 0:02:49.2]}
7. O-O {[%clk 0:02:50.9]} 7... O-O {[%clk 0:02:48.7]} 8. b3 {[%clk 0:02:51]}
8... c5 {[%clk 0:02:45.9]} 9. Bb2 {[%clk 0:02:50.4]} 9... cxd4 {[%clk
0:02:46.2]} 10. exd4 {[%clk 0:02:50]} 10... b6 {[%clk 0:02:46.1]} 11. cxd5
{[%clk 0:02:49.3]} 11... exd5 {[%clk 0:02:45.5]} 12. Re1 {[%clk 0:02:46]} 12...
Re8 {[%clk 0:02:45.3]} 13. Rc1 {[%clk 0:02:44.3]} 13... Bb7 {[%clk 0:02:38.4]}
14. h3 {[%clk 0:02:44]} 14... Rc8 {[%clk 0:02:37.8]} 15. a3 {[%clk 0:02:43.3]}
15... a6 {[%clk 0:02:30.3]} 16. Ne5 {[%clk 0:02:43.2]} 16... Bd6 {[%clk
0:02:27.2]} 17. f4 {[%clk 0:02:35.9]} 17... b5 {[%clk 0:02:27]} 18. a4 {[%clk
0:02:24.1]} 18... b4 {[%clk 0:02:24.8]} 19. Nb1 {[%clk 0:02:21.8]} 19... Qb6
{[%clk 0:02:22.2]} 20. Rxc8 {[%clk 0:02:17.7]} 20... Bxc8 {[%clk 0:02:12.7]} 21.
Kh1 {[%clk 0:02:07.3]} 21... Ne4 {[%clk 0:01:59.8]} 22. Bxe4 {[%clk 0:01:42.9]}
22... dxe4 {[%clk 0:01:59.6]} 23. Nd2 {[%clk 0:01:43.8]} 23... Nf6 {[%clk
0:01:45]} 24. d5 {[%clk 0:01:34.2]} 24... Bb7 {[%clk 0:01:32.8]} 25. Nec4 {[%clk
0:01:30.4]} 25... Qd8 {[%clk 0:01:22.8]} 26. Bxf6 {[%clk 0:01:27.2]} 26... gxf6
{[%clk 0:01:06.7]} 27. Nxe4 {[%clk 0:01:26.7]} 27... Bf8 {[%clk 0:01:02.4]} 28.
Nxf6+ {[%clk 0:01:23.9]} 28... Qxf6 {[%clk 0:01:02.3]} 29. Rxe8 {[%clk
0:01:24.3]} 29... Qxf4 {[%clk 0:00:57]} 30. d6 {[%clk 0:01:13.9]} 30... h5
{[%clk 0:00:25.4]} 31. d7 {[%clk 0:01:03.6]} 31... Qg3 {[%clk 0:00:24.4]} 32.
Rxf8+ {[%clk 0:01:03.2]} 32... Kxf8 {[%clk 0:00:24.1]} 33. d8=Q+ {[%clk
0:01:03.2]} 33... Kg7 {[%clk 0:00:24.4]} 34. Q1d4+ {[%clk 0:00:57.5]} 34... f6
{[%clk 0:00:22]} 35. Q4xf6+ {[%clk 0:00:56.5]} 1-0

[Event "Early-Titled-Tuesday-Blitz-May-14-2024"]
[Site "Chess.com"]
[Date "2024.05.14"]
[Round "2"]
[White "Suleyman_Chess06"]
[Black "Journey_to_GrandMaster_YT"]
[Result "1-0"]
[WhiteElo "2797"]
[BlackElo "2553"]
[TimeControl "180+1"]
[EndTime "8:17:21 PDT"]
[Termination "Suleyman_Chess06 won by resignation"]

1. Nf3 {[%clk 0:03:00.9]} 1... d6 {[%clk 0:02:57.5]} 2. d4 {[%clk 0:03:00.4]}
2... Nf6 {[%clk 0:02:55.8]} 3. g3 {[%clk 0:03:00.9]} 3... Nbd7 {[%clk
0:02:56.5]} 4. Bg2 {[%clk 0:03:01.8]} 4... e5 {[%clk 0:02:57.1]} 5. O-O {[%clk
0:02:59.9]} 5... e4 {[%clk 0:02:56.2]} 6. Nfd2 {[%clk 0:02:59.9]} 6... d5 {[%clk
0:02:56.9]} 7. c4 {[%clk 0:03:00.2]} 7... c6 {[%clk 0:02:57.6]} 8. Nc3 {[%clk
0:03:00.7]} 8... Be7 {[%clk 0:02:56.3]} 9. Qb3 {[%clk 0:03:00.3]} 9... Nb6
{[%clk 0:02:55.6]} 10. cxd5 {[%clk 0:02:55.8]} 10... cxd5 {[%clk 0:02:55.7]} 11.
a4 {[%clk 0:02:56]} 11... a5 {[%clk 0:02:55.1]} 12. e3 {[%clk 0:02:48.4]} 12...
O-O {[%clk 0:02:54.3]} 13. f3 {[%clk 0:02:49]} 13... exf3 {[%clk 0:02:54.2]} 14.
Nxf3 {[%clk 0:02:49.3]} 14... h6 {[%clk 0:02:42.3]} 15. Ne5 {[%clk 0:02:47]}
15... Ng4 {[%clk 0:02:40.3]} 16. Nxg4 {[%clk 0:02:40.7]} 16... Bxg4 {[%clk
0:02:41.2]} 17. Nxd5 {[%clk 0:02:40.8]} 17... Be6 {[%clk 0:02:22.7]} 18. Nxe7+
{[%clk 0:02:38.9]} 18... Qxe7 {[%clk 0:02:22.7]} 19. Qxb6 {[%clk 0:02:38.8]}
19... Rac8 {[%clk 0:02:17.3]} 20. Bd2 {[%clk 0:02:36.1]} 20... Rc2 {[%clk
0:02:17]} 21. Bc3 {[%clk 0:02:35.4]} 21... Bc4 {[%clk 0:02:14.2]} 22. Rf3 {[%clk
0:02:29.8]} 22... Bd5 {[%clk 0:02:06.4]} 23. Re1 {[%clk 0:01:45.9]} 23... Rxg2+
{[%clk 0:01:09.1]} 24. Kxg2 {[%clk 0:01:44.9]} 24... Qe4 {[%clk 0:01:09.7]} 25.
Rf1 {[%clk 0:01:45.1]} 25... g5 {[%clk 0:00:59.2]} 26. h3 {[%clk 0:01:19]} 26...
h5 {[%clk 0:00:56.7]} 27. Qf6 {[%clk 0:01:09.4]} 27... Qxe3 {[%clk 0:00:39.5]}
28. Kh2 {[%clk 0:00:49.3]} 28... Bxf3 {[%clk 0:00:18.7]} 29. Rxf3 {[%clk
0:00:45.1]} 29... Qe2+ {[%clk 0:00:17.6]} 30. Rf2 {[%clk 0:00:43.1]} 30... Qe3
{[%clk 0:00:17.9]} 31. d5 {[%clk 0:00:43.3]} 31... Qxc3 {[%clk 0:00:12.4]} 32.
bxc3 {[%clk 0:00:42]} 1-0

[Event "Early-Titled-Tuesday-Blitz-May-14-2024"]
[Site "Chess.com"]
[Date "2024.05.14"]
[Round "2"]
[White "ilya2700"]
[Black "HajiyevKanan"]
[Result "0-1"]
[WhiteElo "2245"]
[BlackElo "2506"]
[TimeControl "180+1"]
[EndTime "8:17:21 PDT"]
[Termination "HajiyevKanan won by resignation"]

1. d4 {[%clk 0:02:59.4]} 1... d5 {[%clk 0:02:59.7]} 2. c4 {[%clk 0:02:56.6]}
2... c6 {[%clk 0:02:59.6]} 3. Nf3 {[%clk 0:02:55.7]} 3... Nf6 {[%clk 0:02:59.9]}
4. Nc3 {[%clk 0:02:56.2]} 4... a6 {[%clk 0:03:00.3]} 5. cxd5 {[%clk 0:02:56.3]}
5... cxd5 {[%clk 0:03:01.2]} 6. Bf4 {[%clk 0:02:56.3]} 6... Nc6 {[%clk
0:03:02.1]} 7. e3 {[%clk 0:02:56.2]} 7... Bg4 {[%clk 0:03:02.8]} 8. Be2 {[%clk
0:02:49.5]} 8... e6 {[%clk 0:03:02.2]} 9. h3 {[%clk 0:02:49.6]} 9... Bh5 {[%clk
0:03:00.5]} 10. g4 {[%clk 0:02:49.1]} 10... Bg6 {[%clk 0:03:00.1]} 11. Nh4
{[%clk 0:02:49.4]} 11... Be4 {[%clk 0:02:52.2]} 12. f3 {[%clk 0:02:44.6]} 12...
Nd7 {[%clk 0:02:46.9]} 13. Ng2 {[%clk 0:02:29.7]} 13... Bg6 {[%clk 0:02:45.1]}
14. Rc1 {[%clk 0:02:21.7]} 14... h5 {[%clk 0:02:43.2]} 15. g5 {[%clk 0:02:13.3]}
15... h4 {[%clk 0:02:40.7]} 16. Bd3 {[%clk 0:01:55.3]} 16... Bxd3 {[%clk
0:02:36.2]} 17. Qxd3 {[%clk 0:01:56.2]} 17... g6 {[%clk 0:02:37.1]} 18. e4
{[%clk 0:01:46.6]} 18... dxe4 {[%clk 0:02:34.8]} 19. fxe4 {[%clk 0:01:46.5]}
19... Nc5 {[%clk 0:02:33.9]} 20. Qe2 {[%clk 0:01:31.5]} 20... Qxd4 {[%clk
0:02:23.9]} 21. Rd1 {[%clk 0:01:30.7]} 21... Qb4 {[%clk 0:02:09.9]} 22. O-O
{[%clk 0:01:30.2]} 22... Be7 {[%clk 0:02:07.2]} 23. Nd5 {[%clk 0:01:25.8]} 23...
exd5 {[%clk 0:01:22.8]} 24. exd5 {[%clk 0:01:25.7]} 24... O-O {[%clk 0:01:13]}
25. dxc6 {[%clk 0:01:25.3]} 25... Rae8 {[%clk 0:01:08.7]} 26. Qc2 {[%clk
0:00:44.4]} 26... bxc6 {[%clk 0:01:03.9]} 27. Nxh4 {[%clk 0:00:44.6]} 27... Qe4
{[%clk 0:01:01.6]} 28. Qh2 {[%clk 0:00:33.4]} 28... Ne6 {[%clk 0:00:56.7]} 29.
Rde1 {[%clk 0:00:25]} 29... Bc5+ {[%clk 0:00:56.9]} 30. Qf2 {[%clk 0:00:10.2]}
30... Qxf4 {[%clk 0:00:54.1]} 31. Qxc5 {[%clk 0:00:09.5]} 31... Qg3+ {[%clk
0:00:52.8]} 32. Ng2 {[%clk 0:00:09.8]} 32... Nxc5 {[%clk 0:00:52.5]} 0-1